[Event "*** Titled Tuesday Blitz"]
[Site "Chess.com"]
[Date "2021.04.20"]
[Round "5"]
[White "kleopl"]
[Black "Piccadilly123"]
[Result "1-0"]
[WhiteElo "2499"]
[BlackElo "2238"]
[TimeControl "180+1"]
[EndTime "10:54:12 PDT"]
[Termination "kleopl won by checkmate"]

1. c4 {[%clk 0:03:00.9]} 1... e5 {[%clk 0:02:54.4]} 2. Nc3 {[%clk 0:03:00.3]}
2... Nf6 {[%clk 0:02:53.2]} 3. Nf3 {[%clk 0:03:00.3]} 3... Nc6 {[%clk
0:02:52.5]} 4. e4 {[%clk 0:03:00.3]} 4... Bb4 {[%clk 0:02:51]} 5. d3 {[%clk
0:02:58.9]} 5... O-O {[%clk 0:02:49.8]} 6. Be2 {[%clk 0:02:53.1]} 6... d6 {[%clk
0:02:47.7]} 7. O-O {[%clk 0:02:50.9]} 7... Nd7 {[%clk 0:02:36.6]} 8. Nd5 {[%clk
0:02:45.5]} 8... Bc5 {[%clk 0:02:36.5]} 9. Rb1 {[%clk 0:02:45.3]} 9... a5 {[%clk
0:02:36.4]} 10. b3 {[%clk 0:02:33.9]} 10... Ne7 {[%clk 0:02:27.3]} 11. a3 {[%clk
0:02:30.9]} 11... c6 {[%clk 0:02:22]} 12. Nxe7+ {[%clk 0:02:29.4]} 12... Qxe7
{[%clk 0:02:22.9]} 13. b4 {[%clk 0:02:30]} 13... axb4 {[%clk 0:02:22.5]} 14.
axb4 {[%clk 0:02:30.9]} 14... Bb6 {[%clk 0:02:22.7]} 15. Be3 {[%clk 0:02:28]}
15... Bxe3 {[%clk 0:02:16.4]} 16. fxe3 {[%clk 0:02:28.9]} 16... f5 {[%clk
0:02:10.7]} 17. exf5 {[%clk 0:02:27.8]} 17... Rxf5 {[%clk 0:02:11.3]} 18. Nd2
{[%clk 0:02:27.5]} 18... Rxf1+ {[%clk 0:02:10.4]} 19. Qxf1 {[%clk 0:02:26.2]}
19... Nf6 {[%clk 0:02:11]} 20. Ra1 {[%clk 0:02:19.6]} 20... Rxa1 {[%clk
0:02:08.5]} 21. Qxa1 {[%clk 0:02:20.5]} 21... Bf5 {[%clk 0:01:56.1]} 22. Qa8+
{[%clk 0:02:16.9]} 22... Kf7 {[%clk 0:01:56.5]} 23. h3 {[%clk 0:02:10.2]} 23...
Qc7 {[%clk 0:01:46.8]} 24. Qa7 {[%clk 0:01:40.4]} 24... Nd7 {[%clk 0:01:40.3]}
25. c5 {[%clk 0:01:33.2]} 25... d5 {[%clk 0:01:21.7]} 26. Nf3 {[%clk 0:01:28.9]}
26... Nf6 {[%clk 0:01:02.1]} 27. d4 {[%clk 0:01:23.4]} 27... exd4 {[%clk
0:00:53.7]} 28. exd4 {[%clk 0:01:23.6]} 28... Ne4 {[%clk 0:00:51.7]} 29. Ne5+
{[%clk 0:01:20.2]} 29... Kf6 {[%clk 0:00:52]} 30. Qa8 {[%clk 0:01:16.2]} 30...
Qc8 {[%clk 0:00:48.4]} 31. Qa5 {[%clk 0:01:02]} 31... h5 {[%clk 0:00:16]} 32.
Bxh5 {[%clk 0:00:58.7]} 32... g6 {[%clk 0:00:15.7]} 33. Bf3 {[%clk 0:00:57.8]}
33... Bxh3 {[%clk 0:00:15.1]} 34. gxh3 {[%clk 0:00:47.9]} 34... Qxh3 {[%clk
0:00:16]} 35. Qd8+ {[%clk 0:00:47.5]} 35... Kg7 {[%clk 0:00:15.8]} 36. Qe7+
{[%clk 0:00:46]} 36... Kh6 {[%clk 0:00:14.5]} 37. Qf8+ {[%clk 0:00:45.8]} 37...
Kh7 {[%clk 0:00:14.4]} 38. Qf7+ {[%clk 0:00:45.9]} 38... Kh8 {[%clk 0:00:12.4]}
39. Nxg6# {[%clk 0:00:45.9]} 1-0

[Event "*** Titled Tuesday Blitz"]
[Site "Chess.com"]
[Date "2021.04.20"]
[Round "5"]
[White "AwareIdea"]
[Black "Goryachkina"]
[Result "1-0"]
[WhiteElo "2468"]
[BlackElo "2635"]
[TimeControl "180+1"]
[EndTime "10:54:13 PDT"]
[Termination "AwareIdea won on time"]

1. d4 {[%clk 0:02:53.9]} 1... Nf6 {[%clk 0:02:59.6]} 2. c4 {[%clk 0:02:54]} 2...
e6 {[%clk 0:02:59.8]} 3. g3 {[%clk 0:02:53]} 3... d5 {[%clk 0:02:55.6]} 4. Bg2
{[%clk 0:02:52.8]} 4... Bb4+ {[%clk 0:02:55.1]} 5. Bd2 {[%clk 0:02:52.8]} 5...
Be7 {[%clk 0:02:54.7]} 6. Qc2 {[%clk 0:02:53]} 6... O-O {[%clk 0:02:54.6]} 7.
Nf3 {[%clk 0:02:52.9]} 7... c6 {[%clk 0:02:54.4]} 8. O-O {[%clk 0:02:52.6]} 8...
b6 {[%clk 0:02:54.4]} 9. Bg5 {[%clk 0:02:51.6]} 9... Bb7 {[%clk 0:02:49.9]} 10.
Rd1 {[%clk 0:02:50.9]} 10... Nbd7 {[%clk 0:02:49.2]} 11. Nbd2 {[%clk 0:02:50.2]}
11... h6 {[%clk 0:02:43.8]} 12. Bxf6 {[%clk 0:02:49.9]} 12... Nxf6 {[%clk
0:02:43.6]} 13. e4 {[%clk 0:02:50.8]} 13... Rc8 {[%clk 0:02:42.4]} 14. Rac1
{[%clk 0:02:48]} 14... a5 {[%clk 0:02:34.7]} 15. Ne5 {[%clk 0:02:47.1]} 15...
Bb4 {[%clk 0:02:14.3]} 16. c5 {[%clk 0:02:40.7]} 16... bxc5 {[%clk 0:01:42.1]}
17. dxc5 {[%clk 0:02:37.5]} 17... Qc7 {[%clk 0:01:41.6]} 18. Nef3 {[%clk
0:02:28.2]} 18... Bxd2 {[%clk 0:01:37.5]} 19. Nxd2 {[%clk 0:02:25.6]} 19... Ba6
{[%clk 0:01:37.6]} 20. b3 {[%clk 0:02:13.9]} 20... Rfd8 {[%clk 0:01:36]} 21.
exd5 {[%clk 0:02:11.9]} 21... exd5 {[%clk 0:01:18.5]} 22. Nf3 {[%clk 0:02:08.5]}
22... Ne4 {[%clk 0:01:15.7]} 23. Nd4 {[%clk 0:02:07.9]} 23... Re8 {[%clk
0:01:14.9]} 24. Re1 {[%clk 0:02:07]} 24... Nf6 {[%clk 0:00:53.3]} 25. Nf5 {[%clk
0:01:44.1]} 25... Rcd8 {[%clk 0:00:26]} 26. Nd6 {[%clk 0:01:40.1]} 26... Rxe1+
{[%clk 0:00:25.4]} 27. Rxe1 {[%clk 0:01:39.3]} 27... Rxd6 {[%clk 0:00:19.5]} 28.
cxd6 {[%clk 0:01:40.2]} 28... Qxd6 {[%clk 0:00:20.1]} 29. Qd2 {[%clk 0:01:36.8]}
29... Qd8 {[%clk 0:00:15.9]} 30. Qd4 {[%clk 0:01:32.6]} 30... Qd6 {[%clk
0:00:12.7]} 31. Qa7 {[%clk 0:01:29.3]} 31... Bd3 {[%clk 0:00:11.8]} 32. Qxa5
{[%clk 0:01:27.2]} 32... Ne4 {[%clk 0:00:11.4]} 33. Re3 {[%clk 0:01:17.4]} 33...
Bc2 {[%clk 0:00:02.2]} 34. Qe1 {[%clk 0:01:09.8]} 34... Qa3 {[%clk 0:00:01.2]}
35. Bxe4 {[%clk 0:00:53.1]} 1-0

[Event "*** Titled Tuesday Blitz"]
[Site "Chess.com"]
[Date "2021.04.20"]
[Round "5"]
[White "IriBu"]
[Black "Sjakkerntobi"]
[Result "1-0"]
[WhiteElo "2567"]
[BlackElo "2389"]
[TimeControl "180+1"]
[EndTime "10:54:13 PDT"]
[Termination "IriBu won by resignation"]

1. e4 {[%clk 0:03:00.9]} 1... e6 {[%clk 0:02:59.6]} 2. d4 {[%clk 0:03:00.2]}
2... d5 {[%clk 0:02:59.7]} 3. Nc3 {[%clk 0:03:00.7]} 3... h6 {[%clk 0:02:59.1]}
4. a3 {[%clk 0:02:58.7]} 4... Nf6 {[%clk 0:02:57.3]} 5. e5 {[%clk 0:02:59.1]}
5... Nfd7 {[%clk 0:02:58]} 6. f4 {[%clk 0:02:59.7]} 6... c5 {[%clk 0:02:58.6]}
7. Nf3 {[%clk 0:03:00.4]} 7... Nc6 {[%clk 0:02:56.9]} 8. Be3 {[%clk 0:03:00.1]}
8... a6 {[%clk 0:02:55.6]} 9. Be2 {[%clk 0:02:59.6]} 9... b5 {[%clk 0:02:55.4]}
10. Qd2 {[%clk 0:02:59.8]} 10... Qb6 {[%clk 0:02:55.3]} 11. Nd1 {[%clk
0:02:58.4]} 11... cxd4 {[%clk 0:02:54.2]} 12. Nxd4 {[%clk 0:02:57.9]} 12... Bc5
{[%clk 0:02:53.6]} 13. c3 {[%clk 0:02:57.9]} 13... Bb7 {[%clk 0:02:44.8]} 14.
O-O {[%clk 0:02:57.2]} 14... O-O {[%clk 0:02:42]} 15. b4 {[%clk 0:02:54.7]}
15... Bxd4 {[%clk 0:02:42.1]} 16. cxd4 {[%clk 0:02:54.9]} 16... a5 {[%clk
0:02:40.2]} 17. Nf2 {[%clk 0:02:46.4]} 17... axb4 {[%clk 0:02:35.8]} 18. axb4
{[%clk 0:02:47.3]} 18... Rxa1 {[%clk 0:02:33.7]} 19. Rxa1 {[%clk 0:02:48.2]}
19... Ra8 {[%clk 0:02:34.1]} 20. Rxa8+ {[%clk 0:02:47.2]} 20... Bxa8 {[%clk
0:02:35]} 21. h3 {[%clk 0:02:46.3]} 21... Bb7 {[%clk 0:02:29.6]} 22. Qc3 {[%clk
0:02:46.2]} 22... Ndb8 {[%clk 0:02:23.8]} 23. Nd3 {[%clk 0:02:44.3]} 23... Na6
{[%clk 0:02:22.2]} 24. Bf3 {[%clk 0:02:39]} 24... Bc8 {[%clk 0:02:20.3]} 25. f5
{[%clk 0:02:36.8]} 25... exf5 {[%clk 0:01:58.4]} 26. Bxd5 {[%clk 0:02:35.1]}
26... Ne7 {[%clk 0:01:59]} 27. Bf3 {[%clk 0:02:26.5]} 27... Be6 {[%clk
0:01:58.3]} 28. Nf4 {[%clk 0:02:26.8]} 28... Qc7 {[%clk 0:01:51.8]} 29. Qa3
{[%clk 0:02:15.7]} 29... Qc8 {[%clk 0:00:55.5]} 30. d5 {[%clk 0:02:12.6]} 30...
Bd7 {[%clk 0:00:55.1]} 31. Bc5 {[%clk 0:01:57.4]} 31... Nxc5 {[%clk 0:00:39.3]}
32. bxc5 {[%clk 0:01:58.3]} 32... g5 {[%clk 0:00:40]} 33. Nd3 {[%clk 0:01:54.4]}
33... g4 {[%clk 0:00:38.5]} 34. hxg4 {[%clk 0:01:49.7]} 34... fxg4 {[%clk
0:00:39.4]} 35. Be4 {[%clk 0:01:50.2]} 35... Bf5 {[%clk 0:00:39.6]} 36. Qb4
{[%clk 0:01:49.5]} 36... Bxe4 {[%clk 0:00:34.5]} 37. Qxe4 {[%clk 0:01:50.4]}
37... Qd7 {[%clk 0:00:35]} 38. Nb4 {[%clk 0:01:46.2]} 38... Ng6 {[%clk
0:00:27.7]} 39. c6 {[%clk 0:01:44.7]} 39... Qe7 {[%clk 0:00:27.8]} 40. d6 {[%clk
0:01:40.3]} 40... Qa7+ {[%clk 0:00:27.5]} 41. Kh2 {[%clk 0:01:38.6]} 41... Qf2
{[%clk 0:00:16.3]} 42. Qxg4 {[%clk 0:01:38.4]} 42... Qc5 {[%clk 0:00:14.5]} 43.
Qe4 {[%clk 0:01:19.8]} 43... Nxe5 {[%clk 0:00:14.2]} 44. c7 {[%clk 0:01:18.1]}
44... Nf3+ {[%clk 0:00:03.7]} 45. Qxf3 {[%clk 0:01:16.3]} 45... Qxd6+ {[%clk
0:00:04.6]} 46. Qg3+ {[%clk 0:01:16.8]} 46... Qxg3+ {[%clk 0:00:03.6]} 47. Kxg3
{[%clk 0:01:17.7]} 1-0

[Event "*** Titled Tuesday Blitz"]
[Site "Chess.com"]
[Date "2021.04.20"]
[Round "5"]
[White "seorobert1971"]
[Black "Diaschess88"]
[Result "1-0"]
[WhiteElo "2721"]
[BlackElo "2500"]
[TimeControl "180+1"]
[EndTime "10:54:16 PDT"]
[Termination "seorobert1971 won by resignation"]

1. Nf3 {[%clk 0:03:00.9]} 1... d5 {[%clk 0:02:55.1]} 2. d4 {[%clk 0:03:00.8]}
2... c6 {[%clk 0:02:52.8]} 3. c4 {[%clk 0:03:01.7]} 3... Nf6 {[%clk 0:02:52.3]}
4. e3 {[%clk 0:03:01.9]} 4... Bf5 {[%clk 0:02:49.7]} 5. Nc3 {[%clk 0:03:02.1]}
5... e6 {[%clk 0:02:50.1]} 6. Nh4 {[%clk 0:03:02.4]} 6... Bg6 {[%clk 0:02:48.6]}
7. Be2 {[%clk 0:03:02.1]} 7... Nbd7 {[%clk 0:02:46.6]} 8. a3 {[%clk 0:03:01.4]}
8... Be7 {[%clk 0:02:44.8]} 9. Nxg6 {[%clk 0:03:00.4]} 9... hxg6 {[%clk
0:02:44.7]} 10. b4 {[%clk 0:02:59.9]} 10... dxc4 {[%clk 0:02:42.3]} 11. Bxc4
{[%clk 0:02:59.6]} 11... a5 {[%clk 0:02:40.2]} 12. b5 {[%clk 0:02:57.7]} 12...
Qb6 {[%clk 0:02:38.8]} 13. O-O {[%clk 0:02:53.2]} 13... cxb5 {[%clk 0:02:32.2]}
14. Nxb5 {[%clk 0:02:51.2]} 14... Rc8 {[%clk 0:02:27.3]} 15. Bd3 {[%clk
0:02:50.2]} 15... e5 {[%clk 0:02:07.6]} 16. Bb2 {[%clk 0:02:48.3]} 16... e4
{[%clk 0:01:57.6]} 17. Be2 {[%clk 0:02:48.3]} 17... Nd5 {[%clk 0:01:42.4]} 18.
Qb3 {[%clk 0:02:45.8]} 18... N7f6 {[%clk 0:01:12.3]} 19. Rac1 {[%clk 0:02:44]}
19... O-O {[%clk 0:01:01.1]} 20. Rc4 {[%clk 0:02:40.6]} 20... Qe6 {[%clk
0:00:52.5]} 21. Rfc1 {[%clk 0:02:38.2]} 21... Nb6 {[%clk 0:00:50.1]} 22. R4c3
{[%clk 0:02:21.1]} 22... Rxc3 {[%clk 0:00:44.4]} 23. Qxc3 {[%clk 0:02:17.7]}
23... Na4 {[%clk 0:00:44.5]} 24. Qc2 {[%clk 0:02:15.5]} 24... Nxb2 {[%clk
0:00:31.7]} 25. Qxb2 {[%clk 0:02:15.6]} 25... Rc8 {[%clk 0:00:30.8]} 26. Rxc8+
{[%clk 0:02:13.8]} 26... Qxc8 {[%clk 0:00:31.7]} 27. g3 {[%clk 0:02:12.7]} 27...
Nd5 {[%clk 0:00:30.4]} 28. Qb3 {[%clk 0:02:11.2]} 28... Qc6 {[%clk 0:00:21.6]}
29. Bc4 {[%clk 0:02:10]} 29... Nf6 {[%clk 0:00:17.8]} 30. Bxf7+ {[%clk
0:02:02.6]} 30... Kh7 {[%clk 0:00:17.8]} 31. Nc3 {[%clk 0:01:57.9]} 31... Ng4
{[%clk 0:00:17]} 32. Bd5 {[%clk 0:01:54.7]} 32... Qf6 {[%clk 0:00:15.9]} 33.
Nxe4 {[%clk 0:01:54.8]} 33... Qf5 {[%clk 0:00:15.4]} 34. h3 {[%clk 0:01:45.8]}
34... Nf6 {[%clk 0:00:13.2]} 35. Nxf6+ {[%clk 0:01:45.7]} 35... Bxf6 {[%clk
0:00:13.7]} 36. Qxb7 {[%clk 0:01:43.5]} 36... Qxh3 {[%clk 0:00:13.8]} 37. Be4
{[%clk 0:01:38.3]} 37... Qe6 {[%clk 0:00:12]} 38. Qd5 {[%clk 0:01:34.5]} 38...
Qxd5 {[%clk 0:00:11.1]} 39. Bxd5 {[%clk 0:01:34.5]} 39... Be7 {[%clk 0:00:11.5]}
40. a4 {[%clk 0:01:34.5]} 40... g5 {[%clk 0:00:12]} 41. g4 {[%clk 0:01:34.1]}
41... Kg6 {[%clk 0:00:12.2]} 42. Kg2 {[%clk 0:01:34.4]} 42... Kf6 {[%clk
0:00:12.7]} 43. Kf3 {[%clk 0:01:34.7]} 43... Bd6 {[%clk 0:00:13]} 44. Ke4 {[%clk
0:01:33.6]} 44... Bh2 {[%clk 0:00:12.2]} 45. Bc4 {[%clk 0:01:33.2]} 45... Bg1
{[%clk 0:00:12.5]} 46. f3 {[%clk 0:01:33.5]} 46... Ke7 {[%clk 0:00:11.9]} 47.
Kd3 {[%clk 0:01:33.4]} 47... Kd6 {[%clk 0:00:12.3]} 48. e4 {[%clk 0:01:33.7]}
48... Bf2 {[%clk 0:00:12.9]} 49. e5+ {[%clk 0:01:34]} 49... Ke7 {[%clk
0:00:13.1]} 50. Ke4 {[%clk 0:01:34.4]} 50... Bg1 {[%clk 0:00:12.8]} 51. d5
{[%clk 0:01:34.6]} 51... Bf2 {[%clk 0:00:11]} 52. d6+ {[%clk 0:01:34.8]} 52...
Kd7 {[%clk 0:00:10.6]} 53. Bb5+ {[%clk 0:01:35]} 53... Kd8 {[%clk 0:00:10.3]}
54. e6 {[%clk 0:01:34.4]} 54... Bg3 {[%clk 0:00:10.3]} 55. e7+ {[%clk
0:01:34.2]} 1-0

[Event "*** Titled Tuesday Blitz"]
[Site "Chess.com"]
[Date "2021.04.20"]
[Round "5"]
[White "grzechu96"]
[Black "Msb2"]
[Result "0-1"]
[WhiteElo "2683"]
[BlackElo "2914"]
[TimeControl "180+1"]
[EndTime "10:54:20 PDT"]
[Termination "Msb2 won by resignation"]

1. e4 {[%clk 0:03:00.9]} 1... c6 {[%clk 0:03:00.6]} 2. Nf3 {[%clk 0:03:00.4]}
2... d5 {[%clk 0:03:01]} 3. Nc3 {[%clk 0:03:01]} 3... Bg4 {[%clk 0:03:01.1]} 4.
h3 {[%clk 0:03:01.1]} 4... Bxf3 {[%clk 0:03:01.6]} 5. Qxf3 {[%clk 0:03:02]} 5...
e6 {[%clk 0:03:02.5]} 6. d3 {[%clk 0:03:01.7]} 6... Nd7 {[%clk 0:03:02.6]} 7.
Be2 {[%clk 0:03:02]} 7... Bc5 {[%clk 0:02:59.6]} 8. O-O {[%clk 0:03:00.5]} 8...
Ngf6 {[%clk 0:02:49.4]} 9. Qg3 {[%clk 0:02:58]} 9... O-O {[%clk 0:02:48.5]} 10.
Bh6 {[%clk 0:02:54.5]} 10... Ne8 {[%clk 0:02:47.2]} 11. Rad1 {[%clk 0:02:39.3]}
11... Bd4 {[%clk 0:02:46.2]} 12. Bc1 {[%clk 0:02:36.3]} 12... Qc7 {[%clk
0:01:58]} 13. Qxc7 {[%clk 0:02:17.6]} 13... Nxc7 {[%clk 0:01:58.9]} 14. Bf3
{[%clk 0:02:18.2]} 14... Ne5 {[%clk 0:01:49]} 15. Ne2 {[%clk 0:01:59.2]} 15...
Nxf3+ {[%clk 0:01:48.3]} 16. gxf3 {[%clk 0:02:00.1]} 16... Bb6 {[%clk
0:01:48.6]} 17. Kg2 {[%clk 0:01:51.6]} 17... a5 {[%clk 0:01:41.7]} 18. Be3
{[%clk 0:01:21.1]} 18... Bxe3 {[%clk 0:01:36.6]} 19. fxe3 {[%clk 0:01:22]} 19...
a4 {[%clk 0:01:37.5]} 20. a3 {[%clk 0:01:18.4]} 20... Ra6 {[%clk 0:01:35.1]} 21.
Nc3 {[%clk 0:01:13.9]} 21... Rfa8 {[%clk 0:01:34.6]} 22. exd5 {[%clk 0:01:06.2]}
22... Nxd5 {[%clk 0:01:30.9]} 23. Nxd5 {[%clk 0:01:04.5]} 23... cxd5 {[%clk
0:01:31.8]} 24. c3 {[%clk 0:01:00.4]} 24... Kf8 {[%clk 0:01:19.8]} 25. d4 {[%clk
0:00:57.2]} 25... Ke7 {[%clk 0:01:15.6]} 26. Kf2 {[%clk 0:00:54.7]} 26... g5
{[%clk 0:01:10.4]} 27. e4 {[%clk 0:00:54]} 27... Rb6 {[%clk 0:01:02.9]} 28. Rd2
{[%clk 0:00:53.4]} 28... Ra5 {[%clk 0:01:01.9]} 29. Ke3 {[%clk 0:00:52.8]} 29...
f5 {[%clk 0:00:56.9]} 30. Rg1 {[%clk 0:00:31.8]} 30... dxe4 {[%clk 0:00:26.7]}
31. Rxg5 {[%clk 0:00:30.9]} 31... exf3 {[%clk 0:00:26.5]} 32. Rg7+ {[%clk
0:00:28.5]} 32... Kf6 {[%clk 0:00:26.1]} 33. Rxh7 {[%clk 0:00:28.8]} 33... Rab5
{[%clk 0:00:26.8]} 34. Rg2 {[%clk 0:00:22.2]} 34... fxg2 {[%clk 0:00:25.4]} 0-1

[Event "*** Titled Tuesday Blitz"]
[Site "Chess.com"]
[Date "2021.04.20"]
[Round "5"]
[White "ukchessbomber"]
[Black "moro182"]
[Result "0-1"]
[WhiteElo "2515"]
[BlackElo "2703"]
[TimeControl "180+1"]
[EndTime "10:54:23 PDT"]
[Termination "moro182 won by checkmate"]

1. d4 {[%clk 0:03:00.9]} 1... g6 {[%clk 0:03:00.9]} 2. c4 {[%clk 0:03:00]} 2...
Bg7 {[%clk 0:03:01.3]} 3. Nc3 {[%clk 0:03:00.7]} 3... d6 {[%clk 0:03:01.8]} 4.
e4 {[%clk 0:03:01.1]} 4... c5 {[%clk 0:03:01.5]} 5. d5 {[%clk 0:03:01.1]} 5...
Bxc3+ {[%clk 0:03:01.6]} 6. bxc3 {[%clk 0:03:01.1]} 6... e5 {[%clk 0:03:02.5]}
7. h4 {[%clk 0:02:59.7]} 7... h5 {[%clk 0:02:57.2]} 8. Be2 {[%clk 0:02:59.6]}
8... Qe7 {[%clk 0:02:54.5]} 9. Be3 {[%clk 0:02:58.1]} 9... Nd7 {[%clk
0:02:52.2]} 10. f3 {[%clk 0:02:54.4]} 10... f5 {[%clk 0:02:48.8]} 11. Bg5 {[%clk
0:02:48.5]} 11... Qf7 {[%clk 0:02:45.3]} 12. exf5 {[%clk 0:02:36.4]} 12... gxf5
{[%clk 0:02:42.6]} 13. Nh3 {[%clk 0:02:35.3]} 13... f4 {[%clk 0:02:37.6]} 14.
Nf2 {[%clk 0:02:11.6]} 14... Ne7 {[%clk 0:02:29.2]} 15. Bd3 {[%clk 0:01:50.5]}
15... Nf6 {[%clk 0:02:22.1]} 16. Qa4+ {[%clk 0:01:30.8]} 16... Bd7 {[%clk
0:02:14.4]} 17. Qb3 {[%clk 0:01:31.3]} 17... b6 {[%clk 0:02:03.3]} 18. a4 {[%clk
0:01:31.5]} 18... O-O {[%clk 0:01:33.8]} 19. a5 {[%clk 0:01:14.3]} 19... bxa5
{[%clk 0:01:11.8]} 20. Rxa5 {[%clk 0:01:15.2]} 20... Bf5 {[%clk 0:01:00.8]} 21.
Ra6 {[%clk 0:01:04.6]} 21... Bxd3 {[%clk 0:00:58.3]} 22. Nxd3 {[%clk 0:01:05.5]}
22... Nf5 {[%clk 0:00:49.9]} 23. Nxc5 {[%clk 0:00:44.2]} 23... Ne3 {[%clk
0:00:26.6]} 24. Ne6 {[%clk 0:00:33.6]} 24... Rfb8 {[%clk 0:00:24.6]} 25. Qa2
{[%clk 0:00:33.1]} 25... Qb7 {[%clk 0:00:17.4]} 26. Kf2 {[%clk 0:00:18.8]} 26...
Qb2+ {[%clk 0:00:16.3]} 27. Kg1 {[%clk 0:00:19.2]} 27... Qc1+ {[%clk 0:00:10.1]}
28. Kh2 {[%clk 0:00:18.4]} 28... Nfg4+ {[%clk 0:00:10.1]} 29. fxg4 {[%clk
0:00:14.4]} 29... Nxg4+ {[%clk 0:00:11]} 30. Kh3 {[%clk 0:00:15.3]} 30... Qxh1#
{[%clk 0:00:10.7]} 0-1

[Event "*** Titled Tuesday Blitz"]
[Site "Chess.com"]
[Date "2021.04.20"]
[Round "5"]
[White "Aygehovit1992"]
[Black "Superfelix"]
[Result "1-0"]
[WhiteElo "2673"]
[BlackElo "2454"]
[TimeControl "180+1"]
[EndTime "10:54:28 PDT"]
[Termination "Aygehovit1992 won by resignation"]

1. Nf3 {[%clk 0:03:00.9]} 1... Nf6 {[%clk 0:02:59.6]} 2. b3 {[%clk 0:03:00.8]}
2... g6 {[%clk 0:02:59.9]} 3. Bb2 {[%clk 0:03:01.7]} 3... Bg7 {[%clk 0:03:00.8]}
4. g3 {[%clk 0:03:02.2]} 4... O-O {[%clk 0:03:01.3]} 5. Bg2 {[%clk 0:03:02.3]}
5... b6 {[%clk 0:03:01.8]} 6. c4 {[%clk 0:03:01]} 6... Bb7 {[%clk 0:03:02]} 7.
O-O {[%clk 0:03:01.5]} 7... c5 {[%clk 0:03:02.1]} 8. Nc3 {[%clk 0:03:01.8]} 8...
d6 {[%clk 0:03:01.3]} 9. d4 {[%clk 0:02:59.9]} 9... cxd4 {[%clk 0:03:01.4]} 10.
Nxd4 {[%clk 0:02:56.8]} 10... Bxg2 {[%clk 0:03:00.7]} 11. Kxg2 {[%clk
0:02:57.7]} 11... Qc7 {[%clk 0:02:58.3]} 12. e4 {[%clk 0:02:57.6]} 12... Qb7
{[%clk 0:02:58.2]} 13. f3 {[%clk 0:02:56.6]} 13... Nbd7 {[%clk 0:02:58.6]} 14.
Qe2 {[%clk 0:02:53.1]} 14... a6 {[%clk 0:02:58.6]} 15. Rfd1 {[%clk 0:02:53.2]}
15... Rac8 {[%clk 0:02:57]} 16. Nd5 {[%clk 0:02:48]} 16... Rfe8 {[%clk
0:02:53.2]} 17. Rac1 {[%clk 0:02:44.8]} 17... e6 {[%clk 0:02:43.9]} 18. Nxf6+
{[%clk 0:02:35.9]} 18... Bxf6 {[%clk 0:02:41.5]} 19. Kh3 {[%clk 0:02:02.8]}
19... d5 {[%clk 0:02:39.4]} 20. Re1 {[%clk 0:01:44.4]} 20... dxe4 {[%clk
0:02:31.7]} 21. Qxe4 {[%clk 0:01:45.3]} 21... Qxe4 {[%clk 0:02:31.5]} 22. Rxe4
{[%clk 0:01:46]} 22... Nc5 {[%clk 0:02:31]} 23. Re3 {[%clk 0:01:45]} 23... Red8
{[%clk 0:02:30.3]} 24. Nxe6 {[%clk 0:01:37.1]} 24... Bxb2 {[%clk 0:02:26]} 25.
Nxd8 {[%clk 0:01:37.1]} 25... Rxd8 {[%clk 0:02:10.8]} 26. Rce1 {[%clk
0:01:36.8]} 26... Kg7 {[%clk 0:02:08]} 27. Re8 {[%clk 0:01:32.6]} 27... Rd6
{[%clk 0:02:02.3]} 28. R1e2 {[%clk 0:01:30.3]} 28... Bf6 {[%clk 0:01:57.7]} 29.
Kg2 {[%clk 0:01:29.2]} 29... h5 {[%clk 0:01:57.9]} 30. b4 {[%clk 0:01:22.2]}
30... Ne6 {[%clk 0:01:54.8]} 31. Ra8 {[%clk 0:01:13.6]} 31... b5 {[%clk
0:01:48.6]} 32. c5 {[%clk 0:01:13.9]} 32... Rc6 {[%clk 0:01:47.7]} 33. a3 {[%clk
0:01:08.9]} 33... Nd4 {[%clk 0:01:42.8]} 34. Ree8 {[%clk 0:00:55.6]} 34... Nc2
{[%clk 0:01:39.4]} 35. Rg8+ {[%clk 0:00:55]} 35... Kh7 {[%clk 0:01:39.6]} 36.
Rac8 {[%clk 0:00:54.3]} 36... Re6 {[%clk 0:01:29.2]} 37. Rge8 {[%clk 0:00:53.6]}
37... Ne3+ {[%clk 0:00:48]} 38. Kh1 {[%clk 0:00:50.1]} 38... Be7 {[%clk
0:00:43.1]} 39. c6 {[%clk 0:00:45.4]} 39... Nd5 {[%clk 0:00:35.1]} 40. c7 {[%clk
0:00:44.2]} 40... Rc6 {[%clk 0:00:19.6]} 41. Rh8+ {[%clk 0:00:43.8]} 41... Kg7
{[%clk 0:00:18.6]} 42. Rcg8+ {[%clk 0:00:44.7]} 42... Kf6 {[%clk 0:00:18.9]} 43.
c8=Q {[%clk 0:00:45.4]} 43... Rxc8 {[%clk 0:00:19.1]} 44. Rxc8 {[%clk
0:00:46.1]} 1-0

[Event "*** Titled Tuesday Blitz"]
[Site "Chess.com"]
[Date "2021.04.20"]
[Round "5"]
[White "Kislov_Oleg"]
[Black "OlifantCZ"]
[Result "1-0"]
[WhiteElo "2509"]
[BlackElo "2261"]
[TimeControl "180+1"]
[EndTime "10:54:30 PDT"]
[Termination "Kislov_Oleg won by checkmate"]

1. e4 {[%clk 0:03:00.9]} 1... e6 {[%clk 0:02:57.8]} 2. d4 {[%clk 0:03:00.3]}
2... d5 {[%clk 0:02:57.3]} 3. Nc3 {[%clk 0:02:59.8]} 3... Bb4 {[%clk 0:02:56.2]}
4. exd5 {[%clk 0:02:59.3]} 4... exd5 {[%clk 0:02:55.5]} 5. Bd3 {[%clk
0:02:59.4]} 5... Nf6 {[%clk 0:02:53.9]} 6. Ne2 {[%clk 0:02:58.7]} 6... O-O
{[%clk 0:02:53.6]} 7. Bg5 {[%clk 0:02:57.9]} 7... Be7 {[%clk 0:02:53.3]} 8. Qd2
{[%clk 0:02:54.3]} 8... c6 {[%clk 0:02:50.6]} 9. O-O {[%clk 0:02:48.4]} 9... Bg4
{[%clk 0:02:48.7]} 10. Ng3 {[%clk 0:02:46.4]} 10... Nbd7 {[%clk 0:02:41.1]} 11.
h3 {[%clk 0:02:36.4]} 11... Bh5 {[%clk 0:02:39.3]} 12. f4 {[%clk 0:02:28.5]}
12... Re8 {[%clk 0:02:10.5]} 13. Nf5 {[%clk 0:02:15]} 13... Bf8 {[%clk
0:02:08.2]} 14. g4 {[%clk 0:01:36.5]} 14... Bg6 {[%clk 0:02:07.6]} 15. Rae1
{[%clk 0:01:33.3]} 15... Qc7 {[%clk 0:02:03.6]} 16. Qg2 {[%clk 0:01:15.5]} 16...
Bb4 {[%clk 0:01:56]} 17. h4 {[%clk 0:01:10.2]} 17... Nf8 {[%clk 0:01:48.9]} 18.
Bxf6 {[%clk 0:00:59.1]} 18... gxf6 {[%clk 0:01:45.8]} 19. h5 {[%clk 0:00:37.9]}
19... Rxe1 {[%clk 0:01:43]} 20. Rxe1 {[%clk 0:00:34.3]} 20... Bxc3 {[%clk
0:01:43]} 21. bxc3 {[%clk 0:00:34.2]} 21... Qxf4 {[%clk 0:01:41.6]} 22. hxg6
{[%clk 0:00:28.9]} 22... fxg6 {[%clk 0:01:38.7]} 23. Ne3 {[%clk 0:00:19.1]}
23... Re8 {[%clk 0:01:36.4]} 24. Qf2 {[%clk 0:00:19.3]} 24... Qg5 {[%clk
0:01:32.9]} 25. Kh2 {[%clk 0:00:13.1]} 25... Ne6 {[%clk 0:01:26.6]} 26. Qg3
{[%clk 0:00:13]} 26... Nf4 {[%clk 0:01:22.3]} 27. Ng2 {[%clk 0:00:13.1]} 27...
Rxe1 {[%clk 0:01:19.4]} 28. Nxe1 {[%clk 0:00:10.4]} 28... Nxd3 {[%clk
0:01:16.8]} 29. Nxd3 {[%clk 0:00:09.2]} 29... Qd2+ {[%clk 0:01:15.6]} 30. Qf2
{[%clk 0:00:09.6]} 30... Qh6+ {[%clk 0:01:10.5]} 31. Kg3 {[%clk 0:00:09.4]}
31... Kg7 {[%clk 0:01:07.8]} 32. Qf4 {[%clk 0:00:09.2]} 32... Qh1 {[%clk
0:01:04.7]} 33. Qc7+ {[%clk 0:00:09.1]} 33... Kh6 {[%clk 0:01:04.3]} 34. Qf4+
{[%clk 0:00:09]} 34... Kg7 {[%clk 0:01:04]} 35. Qf2 {[%clk 0:00:09.1]} 35... Qd1
{[%clk 0:01:00.5]} 36. Nf4 {[%clk 0:00:07]} 36... Qa1 {[%clk 0:00:47.2]} 37. Qe3
{[%clk 0:00:05.3]} 37... Qb2 {[%clk 0:00:41.3]} 38. Qe7+ {[%clk 0:00:05.3]}
38... Kh6 {[%clk 0:00:41.2]} 39. Qf8+ {[%clk 0:00:05.2]} 39... Kg5 {[%clk
0:00:40.8]} 40. Nh3# {[%clk 0:00:05.5]} 1-0